bitfinex-derivatives/quotes_ETHF0:USTF0_20250621
["timestamp","ask_amount","ask_price","bid_price","bid_amount"]
[1750496552684,5.99e-06,2439.9,2439.8,4.04926038]
[1750496553088,5.99e-06,2439.9,2439.8,0.81965]
[1750496554090,2.11242599,2439.9,2439.8,3.24291096]
[1750496554977,2.11242599,2439.9,2439.8,2.42326096]
[1750496556586,0.81965,2439.8,2439.7,5.63106096]
[1750496556785,2.10555,2439.8,2439.7,5.63106096]
[1750496556987,1.2859,2439.8,2439.7,5.63106096]
[1750496557181,1.2859,2439.8,2439.7,6.45075096]
[1750496557690,5.99e-06,2439.9,2439.8,0.81965]
[1750496557987,7.47900599,2439.9,2439.8,0.81965]
[1750496558189,9.61802599,2439.9,2439.8,0.81965]
[1750496558683,8.79840599,2439.9,2439.8,0.81965]
[1750496559289,7.47900599,2439.9,2439.8,0.81965]
[1750496561195,8.82620599,2439.9,2439.8,0.81965]
[1750496562995,8.82620599,2439.9,2439.8,4.02745]
[1750496563398,5.99e-06,2439.9,2439.8,4.02745]
[1750496565698,1.28730599,2439.9,2439.8,4.02745]
[1750496565901,5.99e-06,2439.9,2439.8,8.80300514]
[1750496566103,5.99e-06,2439.9,2439.8,6.37974418]
[1750496566301,5.99e-06,2439.9,2439.8,4.02745]
[1750496567503,2.13702599,2439.9,2439.8,4.02745]
[1750496567901,2.13702599,2439.9,2439.8,6.44829773]
[1750496568408,4.48932017,2439.9,2439.8,5.62864773]
[1750496568594,3.66970017,2439.9,2439.8,4.02745]
[1750496568796,4.48932017,2439.9,2439.8,5.62881582]
[1750496569203,4.48932017,2439.9,2439.8,6.44846582]
[1750496569405,4.48932017,2439.9,2439.8,5.62881582]
[1750496569604,4.48932017,2439.9,2439.8,6.44846582]
[1750496569798,4.48932017,2439.9,2439.8,3.2078]
[1750496570003,4.48932017,2439.9,2439.8,4.02745]
[1750496570300,38.67732017,2439.9,2439.8,3.2078]
[1750496570700,38.67734017,2439.9,2439.7,2.42101582]
[1750496571008,38.67734017,2439.9,2439.8,0.81965]
[1750496571705,0.81965,2439.8,2439.7,3.24067582]
[1750496571904,1.3298,2439.8,2439.7,3.24067582]
[1750496572406,1.3298,2439.8,2439.7,0.81966]
[1750496573007,1.3298,2439.8,2439.7,3.24023701]
[1750496573503,28.0308,2439.8,2439.7,3.24023701]
[1750496574908,31.20274418,2439.8,2439.7,3.24023701]
[1750496575700,28.85045,2439.8,2439.7,3.24023701]
[1750496576410,31.20274418,2439.8,2439.7,2.42057701]
[1750496576613,31.20274418,2439.8,2439.7,3.24026701]
[1750496577506,31.20274418,2439.8,2439.7,2.42057701]
[1750496577712,31.20274418,2439.8,2439.7,3.24026701]
[1750496578214,7.45600599,2439.9,2439.8,0.81965]
[1750496578414,34.14900599,2439.9,2439.8,4.02745]
[1750496579009,36.24972599,2439.9,2439.8,5.62837701]
[1750496579213,38.60202017,2439.9,2439.8,4.82253743]
[1750496579407,38.60202017,2439.9,2439.8,3.2078]
[1750496579803,43.60202017,2439.9,2439.8,3.2078]
[1750496580118,43.60202017,2439.9,2439.8,4.82321359]
[1750496580308,43.60202017,2439.9,2439.8,3.2078]
[1750496580508,43.60202017,2439.9,2439.8,4.82321359]
[1750496581109,43.60202017,2439.9,2439.8,3.2078]
[1750496581516,43.60202017,2439.9,2439.8,4.82321359]
[1750496581724,43.60202017,2439.9,2439.6,2.42057701]
[1750496581725,0.81965,2439.8,2439.7,1.61541359]
[1750496582016,2.15415,2439.8,2439.7,1.61541359]
[1750496582214,11.59144,2439.8,2439.5,1.61743478]
[1750496582413,0.81979,2439.4,2439.3,2.42057701]
[1750496582715,0.81982,2439.3,2439.2,3.2078]
[1750496582915,3.61092,2439.3,2439.2,3.2078]
[1750496583128,0.81992,2439.0,2438.9,5.63674454]
[1750496583615,29.85421418,2439.0,2438.9,3.2078]
[1750496584015,31.14691418,2439.0,2438.9,3.2078]
[1750496585919,35.02439599,2439.0,2438.9,4.02776]
[1750496586119,34.20447599,2439.0,2438.9,4.02776]
[1750496586922,35.02439599,2439.0,2438.9,4.02776]
[1750496587122,35.02439599,2439.0,2438.9,3.2078]
[1750496587715,35.02639599,2439.0,2438.9,3.2078]
[1750496588324,36.40219599,2439.0,2438.9,3.2078]
[1750496590014,0.88839599,2439.0,2438.9,3.2078]
[1750496590222,35.02039599,2439.0,2438.9,3.2078]
[1750496591023,37.37269017,2439.0,2438.9,3.2078]
[1750496591222,37.37269017,2439.0,2438.9,4.02776]
[1750496592019,0.06847599,2439.0,2438.9,4.02776]
[1750496592225,34.19647599,2439.0,2438.9,4.02776]
[1750496592422,35.01639599,2439.0,2438.9,4.02776]
[1750496592920,34.19647599,2439.0,2438.9,4.02776]
[1750496593316,0.88839599,2439.0,2438.9,4.02776]
[1750496593621,35.01739599,2439.0,2438.9,4.02776]
[1750496594217,0.06847599,2439.0,2438.9,4.02776]
[1750496594417,26.73547599,2439.0,2438.9,4.02776]
[1750496597925,26.73547599,2439.0,2438.9,5.31996]
[1750496599623,0.06847599,2439.0,2438.9,5.31996]
[1750496600022,2.42077017,2439.0,2438.6,5.63674454]
[1750496600225,2.35229418,2438.8,2438.7,0.82002]
[1750496600518,0.06847599,2439.0,2438.9,0.81996]
[1750496600725,26.72247599,2439.0,2438.9,4.02776]
[1750496601120,27.54239599,2439.0,2438.9,4.02776]
[1750496601722,29.89469017,2439.0,2438.9,3.2078]
[1750496601922,0.81999,2438.8,2438.7,0.82001]
[1750496602320,2.11858,2438.9,2438.7,0.82001]
[1750496602520,0.81999,2438.8,2438.7,0.82001]
[1750496602824,3.17228418,2438.8,2438.6,6.45677454]
[1750496603018,27.47102,2438.7,2438.6,3.2078]
[1750496603223,28.76962,2438.7,2438.6,4.02786]
[1750496603725,0.7352,2438.8,2438.7,0.82002]
[1750496604028,34.8422,2438.8,2438.7,0.82002]
[1750496606536,0.06847599,2439.0,2438.6,7.68688454]
[1750496606831,26.644,2438.8,2438.7,0.82002]
[1750496607430,26.644,2438.8,2438.7,3.24896454]
[1750496609226,26.644,2438.8,2438.7,3.24719793]
[1750496609424,26.644,2438.8,2438.7,0.82002]
[1750496610120,0.06847599,2439.0,2438.9,0.81996]
[1750496610332,0.06847599,2439.0,2438.9,6.45653399]
[1750496610527,0.06847599,2439.0,2438.9,7.77723399]
[1750496610727,0.06847599,2439.0,2438.9,4.02776]
[1750496612434,2.23979599,2439.0,2438.9,4.02776]
[1750496612632,2.23979599,2439.0,2438.9,3.2078]
[1750496613629,2.23979599,2439.0,2438.9,5.63986874]
[1750496614025,7.23979599,2439.0,2438.9,5.63986874]
[1750496615732,7.23979599,2439.0,2438.9,3.2078]
[1750496616136,9.59209017,2439.0,2438.9,4.82932313]
[1750496616435,0.82006,2438.6,2438.5,0.82007001]
[1750496616636,29.79435418,2438.6,2438.5,1e-08]
[1750496617042,32.68585418,2438.6,2438.5,1e-08]
[1750496617233,0.82009,2438.5,2438.4,0.8201]
[1750496617428,2.21339,2438.5,2438.4,0.8201]
[1750496618237,2.21339,2438.5,2438.3,0.82013]
[1750496618541,26.618,2438.4,2438.3,0.82013]
[1750496619331,28.97029418,2438.4,2438.3,0.82013]
[1750496619534,31.07171418,2438.4,2438.3,0.82013]
[1750496619739,30.25159418,2438.4,2438.3,0.82013]
[1750496620332,1.4982,2438.6,2438.5,0.82009]
[1750496620532,28.1132,2438.6,2438.5,0.82009]
[1750496620731,0.7267,2438.6,2438.5,0.82009]
[1750496620935,26.614,2438.6,2438.5,0.82009]
[1750496621136,26.614,2438.6,2438.2,3.2078]
[1750496621337,0.82024,2438.1,2437.7,3.22961038]
[1750496621642,28.6874,2438.0,2437.9,0.82028]
[1750496622038,31.03969418,2438.0,2437.9,0.82028]
[1750496622432,31.85995418,2438.0,2437.9,0.82028]
[1750496623245,31.03969418,2438.0,2437.9,0.82028]
[1750496623739,31.03969418,2438.0,2437.6,3.2078]
[1750496623934,31.85997418,2438.0,2437.8,0.82032]
[1750496624134,31.03969418,2438.0,2437.9,0.82029]
[1750496624644,31.03669418,2438.0,2437.9,0.82029]
[1750496625444,6.38022418,2438.4,2438.2,0.82018]
[1750496625743,0.82019,2438.2,2438.1,0.8202]
[1750496626043,3.17248418,2438.2,2438.1,0.8202]
[1750496626244,4.50938418,2438.2,2438.1,0.8202]
[1750496626439,0.82024,2438.1,2437.9,4.02808]
[1750496626742,28.96029418,2438.0,2437.9,4.02808]
[1750496627346,26.608,2438.0,2437.9,4.02808]
[1750496627942,0.7503,2438.1,2438.0,0.82026]
[1750496628151,27.3553,2438.1,2438.0,0.82026]
[1750496629136,28.7345,2438.1,2438.0,0.82026]
[1750496630643,28.80297599,2438.1,2438.0,0.82026]
[1750496634249,29.62319599,2438.1,2438.0,0.82026]
[1750496634555,0.82026,2438.0,2437.6,5.25874]
[1750496634852,26.595,2437.9,2437.8,0.82033]
[1750496636944,27.41529,2437.9,2437.8,0.82033]
[1750496637148,28.70819,2437.9,2437.8,0.82033]
[1750496637442,27.8879,2437.9,2437.8,0.82033]
[1750496639650,26.595,2437.9,2437.8,0.82033]
[1750496642055,36.08061,2437.9,2437.8,0.82033]
[1750496642244,37.61259418,2437.9,2437.8,0.82033]
[1750496642651,26.64847599,2438.1,2438.0,0.82026]
[1750496642855,26.64847599,2438.1,2438.0,4.02806]
[1750496643356,26.64847599,2438.1,2438.0,6.14326]
[1750496645055,26.64847599,2438.1,2438.0,9.37287038]
[1750496646453,29.82099017,2438.1,2438.0,3.2078]
[1750496646658,0.82026,2438.0,2437.9,2.42997644]
[1750496646854,2.90216,2438.0,2437.9,2.42997644]
[1750496647162,2.90216,2438.0,2437.8,2.42997644]
[1750496647163,0.82029,2437.9,2437.8,2.42997644]
[1750496647350,5.24388418,2437.9,2437.8,2.42997644]
[1750496647545,0.82033,2437.8,2437.7,2.42997644]
[1750496647860,28.69533,2437.8,2437.7,2.42997644]
[1750496649860,1.305,2437.8,2437.7,2.42997644]
[1750496650051,26.566,2437.8,2437.7,4.02816]
[1750496650652,27.38633,2437.8,2437.7,3.2078]
[1750496650857,27.38633,2437.8,2437.7,5.63937913]
[1750496651159,27.38633,2437.8,2437.7,3.2078]
[1750496651659,27.38633,2437.8,2437.7,5.64013689]
[1750496652261,28.70493,2437.8,2437.7,5.64013689]
[1750496652859,0.82036,2437.7,2437.6,2.43233689]
[1750496653154,4.51075418,2437.7,2437.6,2.43233689]
[1750496653359,0.06847599,2438.1,2438.0,0.82026]
[1750496653553,26.62947599,2438.1,2438.0,0.82026]
[1750496653752,26.62947599,2438.1,2438.0,4.06137005]
[1750496654255,29.80199017,2438.1,2438.0,3.24111005]
[1750496654453,0.82026,2438.0,2437.9,4.06138005]
[1750496654653,2.93326,2438.0,2437.9,0.82027]
[1750496655161,0.82029,2437.9,2437.8,4.06142005]
[1750496655457,29.73158418,2437.9,2437.8,3.24111005]
[1750496655755,0.82036,2437.7,2437.6,4.06149005]
[1750496656059,27.37436,2437.7,2437.6,0.82038]
[1750496656256,29.72665418,2437.7,2437.6,0.82038]
[1750496656658,0.82043,2437.6,2437.5,0.82041]
[1750496656859,2.18953,2437.6,2437.5,0.82041]
[1750496658263,0.82043,2437.5,2437.4,7.26935005]
[1750496658464,27.37243,2437.5,2437.4,7.26935005]
[1750496658668,27.37243,2437.5,2437.4,6.44891005]
[1750496659165,28.14043,2437.5,2437.4,6.44891005]
[1750496659363,28.14043,2437.5,2437.4,3.2078]
[1750496659560,30.49272418,2437.5,2437.4,3.2078]
[1750496659755,30.49272418,2437.5,2437.4,5.6393959]
[1750496659756,31.28912418,2437.5,2437.4,5.6393959]
[1750496660263,38.67612418,2437.5,2437.4,5.6393959]
[1750496660464,38.67612418,2437.5,2436.9,6.02249089]
[1750496660465,46.06349418,2437.5,2437.0,3.24111005]
[1750496660768,0.82059,2437.0,2436.9,1.60621]
[1750496660964,27.36559,2437.0,2436.9,1.60621]
[1750496661159,0.82063,2436.9,2436.8,3.24111005]
[1750496661375,0.82066,2436.8,2436.7,4.06178005]
[1750496661665,27.36466,2436.8,2436.7,1.23713118]
[1750496661865,27.36466,2436.8,2436.7,0.41646118]
[1750496662065,0.82069,2436.7,2436.6,4.02852]
[1750496662369,26.544,2436.8,2436.7,0.82069]
[1750496662970,27.36466,2436.8,2436.7,0.82069]
[1750496663665,0.82065,2436.9,2436.8,0.82066]
[1750496663865,27.36058,2437.1,2436.6,3.62499636]
[1750496664070,26.54,2437.1,2436.8,0.82065]
[1750496664471,0.82061,2437.0,2436.7,1.3349]
[1750496664768,0.82061,2437.0,2436.9,0.82063]
[1750496665464,27.36058,2437.1,2437.0,0.82059]
[1750496665676,0.82056,2437.1,2437.0,0.82059]
[1750496666072,3.2078,2437.2,2437.0,0.82059]
[1750496666266,3.2078,2437.2,2437.1,0.82056]
[1750496666767,0.82056,2437.1,2437.0,0.82057]
[1750496667368,5.56009418,2437.2,2437.0,0.82057]
[1750496667568,0.82056,2437.1,2437.0,0.82057]
[1750496667771,6.38064418,2437.2,2437.1,0.82056]
[1750496667968,4.02835,2437.2,2437.1,0.82056]
[1750496668169,0.82057,2437.1,2437.0,0.82058]
[1750496668476,4.02835,2437.2,2437.1,0.82056]
[1750496669475,3.2078,2437.2,2437.1,0.82056]
[1750496669676,4.02833,2437.2,2437.1,0.82056]
[1750496669870,3.2078,2437.2,2437.1,0.82056]
[1750496670572,29.7398,2437.2,2437.1,0.82056]
[1750496671275,3.2078,2437.2,2437.1,0.82056]
[1750496671473,29.7398,2437.2,2437.1,0.82056]
[1750496671871,3.2078,2437.2,2437.1,0.82056]
[1750496673075,3.2078,2437.2,2437.1,2.16856]
[1750496675379,3.27627599,2437.2,2437.1,2.16856]
[1750496679384,3.27627599,2437.2,2437.1,0.82056]
[1750496681180,0.06847599,2437.2,2437.1,0.82056]
[1750496681683,3.9274,2437.7,2437.2,2.05128]
[1750496681881,0.8204,2437.6,2437.5,0.82041]
[1750496682287,0.8204,2437.6,2437.5,0.8204]
[1750496683088,31.26179,2437.7,2437.6,0.82039]
[1750496683590,0.82041,2437.6,2437.5,0.82042]
[1750496683890,0.82041,2437.6,2437.5,0.82041]
[1750496684990,31.25578,2437.7,2437.6,0.82039]
[1750496685191,0.82041,2437.6,2437.5,0.82041]
[1750496686080,0.82043,2437.5,2437.4,2.42801656]
[1750496686678,0.82043,2437.5,2437.4,3.24847656]
[1750496689102,0.82043,2437.5,2437.4,2.42801656]
[1750496689499,0.88890599,2437.5,2437.4,2.42801656]
[1750496690405,0.88890599,2437.5,2437.4,3.24847656]
[1750496692599,0.06847599,2437.5,2437.4,3.24847656]
[1750496694691,0.06847599,2437.5,2437.4,0.82046]
[1750496698803,2.20540599,2437.5,2437.4,0.82046]
[1750496700812,0.82046,2437.4,2437.3,4.06158005]
[1750496701010,28.60596,2437.4,2437.3,4.06158005]
[1750496701211,27.7855,2437.4,2437.3,4.06158005]
[1750496702204,28.60596,2437.4,2437.3,4.06158005]
[1750496703006,28.60596,2437.4,2437.3,3.24111005]
[1750496703409,28.60596,2437.4,2437.3,4.06160005]
[1750496705216,30.95825418,2437.4,2437.3,3.24111005]
[1750496705906,31.02673017,2437.4,2437.3,3.24111005]
[1750496706705,0.82049,2437.3,2437.2,4.06162005]
[1750496706911,2.8259,2437.3,2437.2,4.06162005]
[1750496707522,0.06847599,2437.4,2437.3,0.82049]
[1750496707810,0.06847599,2437.4,2437.3,4.07234319]
[1750496708018,0.06847599,2437.4,2437.3,0.82049]
[1750496708216,0.06847599,2437.4,2437.3,2.97299]
[1750496708414,3.2078,2438.1,2437.6,0.82039]
[1750496708610,9.25081399,2438.5,2438.0,2.43738191]
[1750496708611,3.2078,2438.4,2438.0,2.43738191]
[1750496708907,0.81977,2439.5,2439.1,0.81986]
[1750496709118,26.443,2439.4,2439.2,2.43399411]
[1750496709408,26.443,2439.3,2439.0,6.46170411]
[1750496709612,9.66429418,2439.2,2438.8,2.43399411]
[1750496709917,0.82,2438.8,2438.6,2.43399411]
[1750496710123,27.7261,2438.7,2438.6,2.43399411]
[1750496710414,27.7261,2438.7,2438.6,0.82006]
[1750496710813,27.7241,2438.7,2438.5,2.43399411]
[1750496711318,27.7241,2438.7,2438.4,7.19880411]
[1750496711521,27.25798,2438.9,2438.5,0.82008]
[1750496711923,0.81999,2438.8,2438.5,0.82008]
[1750496712213,2.14449,2438.8,2438.5,0.82008]
[1750496713013,2.14449,2438.8,2438.4,7.19880411]
[1750496713217,0.82003,2438.7,2438.4,7.19880411]
[1750496713413,26.429,2438.6,2438.4,7.19880411]
[1750496713612,0.81997,2438.9,2438.5,0.82008]
[1750496713815,0.82001,2438.8,2438.4,6.37869411]
[1750496714114,2.22231,2438.8,2438.4,7.19879411]
[1750496714317,0.82002,2438.7,2438.4,4.7648]
[1750496714517,1.4023,2438.8,2438.4,3.9447]
[1750496714721,2.22238,2438.6,2438.4,3.9447]
[1750496715215,2.22236,2438.6,2438.4,4.76481]
[1750496715416,0.82006,2438.6,2438.4,4.76481]
[1750496715714,0.82006,2438.6,2438.4,3.9447]
[1750496716223,0.82009,2438.5,2438.4,3.9447]
[1750496716723,0.82008,2438.6,2438.4,3.9447]
[1750496716919,0.82009,2438.5,2438.4,3.9447]
[1750496718814,0.82009,2438.5,2438.4,4.76482]
[1750496720022,0.88856599,2438.5,2438.4,4.76482]
[1750496721721,2.04931,2439.6,2438.5,2.05015]
[1750496721921,0.81984,2439.3,2439.1,0.81989]
[1750496722123,0.81987,2439.2,2439.0,4.02771]
[1750496722322,0.81984,2439.3,2439.1,0.81989]
[1750496722626,2.15784,2439.3,2439.1,0.81989]
[1750496723724,2.35229418,2439.2,2439.0,3.2078]
[1750496723919,0.81989,2439.1,2439.0,3.2078]
[1750496724425,2.22919,2439.1,2439.0,4.02772]
[1750496724623,2.22919,2439.1,2439.0,3.2078]
[1750496726128,2.22919,2439.1,2439.0,4.02772]
[1750496726622,28.62719,2439.1,2439.0,3.2078]
[1750496726926,0.82001,2438.8,2438.7,0.82001]
[1750496727129,0.82002,2438.7,2438.6,3.2078]
[1750496727329,2.09912,2438.7,2438.6,3.2078]
[1750496727529,0.82002,2438.7,2438.6,3.2078]
[1750496727919,2.09912,2438.7,2438.6,3.2078]
[1750496728122,2.83642,2438.7,2438.6,3.2078]
[1750496729027,3.57222,2438.7,2438.6,3.2078]
[1750496729631,3.57222,2438.7,2438.6,4.02786]
[1750496731232,3.57222,2438.7,2438.6,3.2078]
[1750496733228,0.82016,2438.4,2438.2,2.43399411]
[1750496733429,0.82016,2438.4,2438.3,0.82014]
[1750496734530,26.386,2438.5,2438.2,2.05047]
[1750496734738,26.382,2438.5,2438.2,0.82018]
[1750496734939,0.82019,2438.2,2438.1,2.43399411]
[1750496735243,0.82018,2438.3,2438.2,0.82018]
[1750496735638,0.82019,2438.2,2438.1,3.25419411]
[1750496736029,0.82019,2438.2,2438.1,2.43399411]
[1750496736233,0.82022,2438.1,2438.0,0.82025]
[1750496736430,28.72929418,2438.1,2438.0,2.42680245]
[1750496736631,0.82031,2437.9,2437.8,0.82031]
[1750496737440,0.82031,2437.9,2437.8,3.24711245]
[1750496738333,0.82028,2438.0,2437.9,0.82029]
[1750496738628,0.82029,2437.9,2437.8,3.24710245]
[1750496740030,29.5848,2438.1,2437.8,4.77909663]
[1750496740228,26.377,2438.1,2438.0,0.82026]
[1750496740438,27.19722,2438.1,2438.0,0.82026]
[1750496740738,26.377,2438.1,2438.0,0.82026]
[1750496741734,27.19722,2438.1,2438.0,0.82026]
[1750496742041,27.19722,2438.1,2437.9,0.82027]
[1750496742042,0.82027,2438.0,2437.9,0.82027]
[1750496743134,3.2078,2438.4,2437.7,3.15770245]
[1750496743334,28.71829418,2438.3,2437.9,3.2078]
[1750496743533,28.71829418,2438.3,2438.0,0.82023]
[1750496743534,0.82024,2438.1,2438.0,0.82023]
[1750496743737,0.82022,2438.1,2438.0,0.82023]
[1750496744328,2.35229418,2438.1,2437.7,3.15770245]
[1750496744532,27.18628,2438.0,2437.9,0.82029]
[1750496746742,0.8203,2437.9,2437.8,0.8203]
[1750496747236,0.82033,2437.8,2437.7,2.42680245]
[1750496747436,0.82033,2437.8,2437.6,2.42680245]
[1750496747437,0.82036,2437.7,2437.6,2.42680245]
[1750496747639,27.18036,2437.7,2437.6,2.42680245]
[1750496748035,28.53966,2437.7,2437.5,3.24720245]
[1750496748640,0.82039,2437.6,2437.5,2.42680245]
[1750496748835,0.82044,2437.5,2437.3,2.42680245]
[1750496749034,26.358,2437.4,2437.3,3.24727245]
[1750496749242,26.358,2437.4,2437.3,0.82047]
[1750496750139,10.4778,2437.8,2437.7,0.82036]
[1750496750343,36.8328,2437.8,2437.5,2.42564698]
[1750496750537,10.4778,2437.8,2437.7,0.82036]
[1750496750844,36.8328,2437.8,2437.7,0.82036]
[1750496751441,37.65313,2437.8,2437.7,0.82036]
[1750496751642,36.8328,2437.8,2437.7,0.82036]
[1750496752944,10.4778,2437.8,2437.7,0.82036]
[1750496753140,36.8288,2437.8,2437.7,0.82036]
[1750496754046,36.8288,2437.8,2437.5,2.42564698]
[1750496754252,40.50189418,2437.8,2437.7,0.82036]
[1750496754644,38.1496,2437.8,2437.7,0.82036]
[1750496755140,36.8288,2437.8,2437.7,0.82036]
[1750496757341,36.8288,2437.8,2437.7,3.24600698]
[1750496757342,29.5518,2437.8,2437.7,3.24600698]
[1750496757544,0.738,2437.9,2437.8,0.82033]
[1750496757849,27.081,2437.9,2437.8,0.82033]
[1750496758352,26.343,2437.9,2437.8,3.24597698]
[1750496760641,26.343,2437.9,2437.8,0.82033]
[1750496760848,26.343,2437.9,2437.8,3.2506976]
[1750496761445,26.343,2437.9,2437.8,0.82033]
[1750496762143,30.84029418,2437.9,2437.7,0.82034]
[1750496762347,27.1375,2437.9,2437.8,0.82033]
[1750496762543,27.95779,2437.9,2437.8,0.82033]
[1750496763248,0.82033,2437.8,2437.7,4.06566548]
[1750496763451,2.20843,2437.8,2437.7,4.06566548]
[1750496763949,2.20843,2437.8,2437.7,3.24532548]
[1750496764146,0.82036,2437.7,2437.6,4.06569548]
[1750496764346,26.33,2437.7,2437.6,4.06569548]
[1750496764748,27.15036,2437.7,2437.6,4.06569548]
[1750496765050,0.82043,2437.5,2437.4,3.24532548]
[1750496765251,0.82045,2437.5,2437.4,0.82046]
[1750496765446,27.14845,2437.5,2437.4,0.82046]
[1750496765648,27.14845,2437.5,2437.3,3.24532548]
[1750496765846,27.14845,2437.5,2437.3,4.06578548]
[1750496766045,27.14845,2437.5,2437.3,3.24532548]
[1750496766250,27.14845,2437.5,2437.3,4.06578548]
[1750496766445,0.82045,2437.5,2437.4,0.82046]
[1750496766647,5.32716599,2437.8,2437.7,0.82036]
[1750496766648,0.06847599,2437.8,2437.7,0.82036]
[1750496768954,0.88881599,2437.8,2437.6,3.24712779]
[1750496769155,26.32,2437.7,2437.5,7.27532779]
[1750496769549,26.32,2437.7,2437.5,6.45492779]
[1750496769852,0.82039,2437.6,2437.5,3.24712779]
[1750496770153,27.14039,2437.7,2437.5,3.24712779]
[1750496770349,27.14039,2437.7,2437.5,4.06751779]
[1750496770651,26.32,2437.7,2437.6,0.82039]
[1750496771447,0.06847599,2437.8,2437.7,0.82036]
[1750496771643,27.20380599,2437.8,2437.7,0.82036]
[1750496772057,0.82036,2437.7,2437.6,2.90517]
[1750496772256,0.82036,2437.7,2437.6,1.61957]
[1750496773149,0.88882599,2437.8,2437.6,1.61957]
[1750496773355,27.13136,2437.7,2437.6,1.61957]
[1750496776154,27.13136,2437.7,2437.6,0.82037]
[1750496777058,26.311,2437.7,2437.6,0.82037]
[1750496777258,26.311,2437.7,2437.6,4.06749779]
[1750496777457,27.13136,2437.7,2437.6,4.06749779]
[1750496777760,27.13136,2437.7,2437.6,0.82037]
[1750496779159,27.13136,2437.7,2437.6,4.06749779]
[1750496780059,27.13136,2437.7,2437.6,3.24712779]
[1750496780860,0.82039,2437.6,2437.5,7.27533779]
[1750496781258,27.19985599,2437.7,2437.6,0.82039]
[1750496782554,26.37947599,2437.7,2437.6,4.06751779]
[1750496783161,26.36047599,2437.7,2437.6,4.06751779]
[1750496789667,0.06847599,2437.7,2437.6,4.06751779]
[1750496789966,26.34547599,2437.7,2437.6,4.06751779]
[1750496796665,26.34547599,2437.7,2437.6,0.82039]
[1750496797969,27.16583599,2437.7,2437.6,4.0718582]
[1750496799266,26.34547599,2437.7,2437.6,4.0718582]
[1750496799667,27.67887599,2437.7,2437.6,4.0718582]
[1750496805075,0.06847599,2437.7,2437.6,4.0718582]
[1750496805281,0.06847599,2437.7,2437.6,3.17268418]
[1750496805784,0.8077,2438.0,2437.9,0.82029]
[1750496805978,27.0407,2438.0,2437.9,6.42295058]
[1750496807378,0.8077,2438.0,2437.9,6.42295058]
[1750496807577,4.0422,2438.3,2437.9,7.65339058]
[1750496807773,4.0422,2438.3,2438.2,3.25604641]
[1750496809185,30.2652,2438.3,2438.2,3.25604641]
[1750496809382,32.38557599,2438.3,2438.2,3.25604641]
[1750496811576,29.17777599,2438.3,2438.2,3.25604641]
[1750496812877,0.06847599,2438.3,2438.2,3.25604641]
[1750496813383,0.06847599,2438.3,2438.2,0.82019]
[1750496813578,1.41457599,2438.3,2438.2,0.82019]
[1750496815673,26.27247599,2438.3,2438.2,5.60834059]
[1750496816079,26.27247599,2438.3,2438.2,3.17248418]
[1750496816782,26.27247599,2438.3,2438.2,5.60455046]
[1750496817490,0.06847599,2438.3,2438.2,5.60426951]
[1750496817681,0.06847599,2438.3,2438.2,6.38086951]
[1750496817990,0.06847599,2438.3,2438.2,4.02857533]
[1750496819275,0.06847599,2438.3,2438.2,3.25197533]
[1750496820786,1.43787599,2438.3,2438.2,3.25197533]
[1750496820981,0.06847599,2438.3,2438.2,3.25197533]
[1750496821886,1.43787599,2438.3,2438.2,3.25197533]
[1750496824389,2.25803599,2438.3,2438.2,3.25197533]
[1750496825694,2.25803599,2438.3,2438.2,2.43178533]
[1750496825986,0.82019,2438.2,2438.1,3.25198533]
[1750496826182,31.54729,2438.2,2438.1,3.25198533]
[1750496826894,30.7271,2438.2,2438.1,3.25198533]
[1750496827389,30.7271,2438.2,2438.1,0.8202]
[1750496827692,30.7271,2438.2,2438.1,3.25183572]
[1750496828491,31.54729,2438.2,2438.1,3.25183572]
[1750496829093,28.33949,2438.2,2438.1,3.25183572]
[1750496829296,30.69178418,2438.2,2438.1,2.43163572]
[1750496829592,0.82022,2438.1,2438.0,3.25188572]
[1750496829787,10.18032,2438.1,2438.0,3.25188572]
[1750496829988,9.3601,2438.1,2438.0,3.25188572]
[1750496830294,9.3601,2438.1,2438.0,0.82025]
[1750496839004,7.143,2438.1,2438.0,0.82025]
[1750496840904,7.21147599,2438.1,2438.0,0.82025]
[1750496841409,33.34647599,2438.1,2438.0,4.0706164]
[1750496841706,33.34647599,2438.1,2438.0,0.82025]
[1750496841893,33.34647599,2438.1,2438.0,4.0706164]
[1750496842103,33.34647599,2438.1,2438.0,0.82025]
[1750496842304,33.34647599,2438.1,2438.0,4.0706164]
[1750496842510,7.21147599,2438.1,2438.0,4.0706164]
[1750496842710,33.34247599,2438.1,2438.0,0.82025]
[1750496845318,34.67357599,2438.1,2438.0,0.82025]
[1750496847816,37.02587017,2438.1,2437.9,0.82027]
[1750496848017,2.1619,2438.0,2437.9,0.82027]
[1750496848515,2.98216,2438.0,2437.8,3.2503664]
[1750496848716,26.114,2437.9,2437.8,3.2503664]
[1750496849319,26.114,2437.9,2437.8,4.0706964]
[1750496856127,26.18247599,2437.9,2437.8,4.0706964]
[1750496863335,26.18247599,2437.9,2437.8,7.27340759]
[1750496864134,26.18247599,2437.9,2437.8,4.06560759]
[1750496866229,26.13647599,2437.9,2437.8,4.06560759]
[1750496867427,26.95676599,2437.9,2437.8,4.06560759]
[1750496867633,27.55187599,2437.9,2437.8,4.06560759]
[1750496868933,33.11197017,2437.9,2437.6,3.24527759]
[1750496869127,3.17265418,2437.7,2437.6,3.24527759]
[1750496869323,29.22665418,2437.7,2437.6,3.24527759]
[1750496870135,29.22665418,2437.7,2437.5,4.06568759]
[1750496870432,3.04029,2437.6,2437.5,4.06570759]
[1750496870827,10.13229,2437.6,2437.5,3.24527759]
[1750496871030,0.82043,2437.5,2437.4,3.24527759]
[1750496871243,0.82043,2437.5,2437.3,0.82047]
[1750496871244,3.17275418,2437.4,2437.2,4.06578759]
[1750496871536,27.4356,2437.3,2437.2,4.06578759]
[1750496872232,27.4356,2437.3,2437.2,0.82051]
[1750496873838,0.7904,2437.5,2437.4,0.82046]
[1750496874129,34.74683,2437.5,2437.4,3.25119986]
[1750496874333,35.3003,2437.5,2437.4,3.25119986]